[Event "Romanian Team Blitz Open 2022"]
[Site "Sebes"]
[Date "2022.12.04"]
[Round "3.17"]
[White "Costachi, Mihnea"]
[Black "Dragomirescu, Robin-Alexandru"]
[Result "1-0"]
[ECO "A40"]
[WhiteElo "2476"]
[BlackElo "2337"]
[Annotator "TA"]
[PlyCount "73"]
[EventDate "2022.12.04"]
[EventType "blitz"]
[EventCountry "ROU"]
[SourceTitle "playchess.com"]
[Source "ChessBase"]
[SourceQuality "1"]
[TimeControl "180+2"]

{[%evp 9,73,23,91,95,80,84,99,79,100,60,61,47,52,47,72,63,66,59,71,64,62,66,69,8,0,-89,-83,-97,-100,-126,-120,-133,-109,-113,-111,-116,-107,-145,-150,-156,-150,-160,-38,-40,-39,-35,0,-98,-90,-92,-98,-88,0,0,0,0,0,0,14,9,10,0,302,294,294,278]} 1. d4 {[%emt 0:00:01][%cal Bd2d4,Bd4d5][%mdl 32]} Nc6 {[%emt 0:00:01]} 2. d5 {[%emt 0:00:05]} Ne5 {[%emt 0:00:02]} 3. g3 {[%emt 0:00:04]} d6 {[%emt 0:00:02]} 4. Bg2 {[%emt 0:00:00]} Nf6 {[%emt 0:00:04]} 5. f4 {[%emt 0:00:06]} Ng6 {[%emt 0:00:06]} (5... Ned7 $11 {remains equal.}) 6. e4 $16 {[%emt 0:00:03] A40: Unusual replies to 1 d4.} e5 {[%emt 0:00:10]} 7. dxe6 {[%emt 0:00:11]} fxe6 {[%emt 0:00:02]} 8. Nc3 {[%emt 0:00:02] [#] White is better.} Be7 $146 {[%emt 0:00:04]} ({Predecessor:} 8... c6 9. Be3 Qa5 10. Qe2 Bd7 11. Bd2 Qc7 12. Nf3 e5 13. O-O-O exf4 14. gxf4 O-O-O {1-0 (28) Todorcevic,M (2505)-Ferron Garcia,C (2345) Las Palmas 1994}) 9. Nf3 {[%emt 0:00:01]} O-O {[%emt 0:00:03]} 10. O-O {[%emt 0:00:02]} c6 {[%emt 0:00:11]} 11. Qe2 {[%emt 0:00:16]} d5 {[%emt 0:00:04]} 12. Kh1 {[%emt 0:00:06]} Bb4 {[%emt 0:00:07]} 13. e5 {[%emt 0:00:15]} Bxc3 {[%emt 0:00:09]} 14. bxc3 {[%emt 0:00:01][%cal Bb2c3,Bc3c4][%mdl 32]} Ne4 {[%emt 0:00:02]} 15. c4 {[%emt 0:00:12]} b6 {[%emt 0:00:01]} 16. Ba3 {[%emt 0:00:02]} (16. cxd5 $14 cxd5 17. Nd4) 16... Ba6 $11 {[%emt 0:00:07]} 17. Nd2 {[%emt 0:00:14]} (17. Bxf8 $11 Bxc4 {[#]} 18. Qe3 $1 Bxf1 19. Rxf1 Nxf8 20. Nd4) 17... Nxd2 $1 $17 {[%emt 0:00:05]} 18. Qxd2 {[%emt 0:00:01][%cal Oc4d5]} Bxc4 {[%emt 0:00:02]} 19. Rf2 {[%emt 0:00:06]} c5 {[%emt 0:00:02]} 20. Bh3 {[%emt 0:00:13]} Qe7 {[%emt 0:00:06]} 21. c3 {[%emt 0:00:06]} Rad8 {[%emt 0:00:03]} 22. Re1 {[%emt 0:00:05]} Qd7 {[%emt 0:00:15]} 23. f5 {[%emt 0:00:02]} exf5 {[%emt 0:00:06] [#] Strongly threatening ...Rde8.} 24. e6 {[%emt 0:00:02]} Qb7 {[%emt 0:00:17]} 25. Bxf5 {[%emt 0:00:09]} d4+ {[%emt 0:00:08]} (25... Ne7 $17 26. Bh3 Rxf2 27. Qxf2 Rf8) 26. Kg1 $1 $15 {[%emt 0:00:01]} Ne7 {[%emt 0:00:11]} 27. Be4 {[%emt 0:00:14]} Bd5 {[%emt 0:00:02]} (27... Qa6 $5 {[%cal Ra6a3]} 28. Bc1 Qa5 29. cxd4 Qxd2 30. Rxd2 Rxd4 $15) 28. Bxd5 {[%emt 0:00:03]} (28. Bd3 $1 $11 {keeps the balance.}) 28... Qxd5 $17 {[%emt 0:00:01]} 29. Rxf8+ {[%emt 0:00:05]} Rxf8 {[%emt 0:00:11]} 30. cxd4 {[%emt 0:00:01]} Rf3 {[%emt 0:00:07]} (30... Nf5 $17 31. Bb2 (31. e7 Re8 $17) 31... Nxd4 32. Bxd4 Qxd4+ 33. Qxd4 cxd4) 31. Bb2 $11 {[%emt 0:00:12]} cxd4 {[%emt 0:00:25]} 32. Qxd4 {[%emt 0:00:05]} Qxd4+ {[%emt 0:00:05]} 33. Bxd4 {[%emt 0:00:01] KRB-KRN} Rd3 {[%emt 0:00:02]} 34. Bb2 {[%emt 0:00:06]} g6 {[%emt 0:00:14]} 35. Re2 {[%emt 0:00:19]} Nd5 $2 {[%emt 0:00:05][%mdl 8192]} (35... Kf8 $11 {and Black has nothing to worry.}) 36. e7 $18 {[%emt 0:00:04][%cal Re7e8]} Rd1+ {[%emt 0:00:12]} 37. Kf2 {[%emt 0:00:01] Never resign too early!   Weighted Error Value: White=0.17 (very precise) /Black=0.35} 1-0

[Event "Romanian Team Blitz Open 2022"]
[Site "Sebes"]
[Date "2022.12.04"]
[Round "3.18"]
[White "Ionescu, Mihai"]
[Black "Sfarlog, Tudor-Vlad"]
[Result "1/2-1/2"]
[ECO "A42"]
[WhiteElo "2243"]
[BlackElo "2283"]
[Annotator "TA"]
[PlyCount "78"]
[EventDate "2022.12.04"]
[EventType "blitz"]
[EventCountry "ROU"]
[SourceTitle "playchess.com"]
[Source "ChessBase"]
[SourceQuality "1"]
[TimeControl "180+2"]

{[%evp 18,78,16,-8,0,0,-14,-50,-47,-75,-65,-69,0,0,0,-39,-32,-52,-43,-59,-50,-52,-58,-56,-37,-41,-22,-31,-18,-12,-16,-70,-81,-105,-80,-87,0,0,0,0,61,-70,152,152,139,139,139,90,182,34,181,183,186,108,116,117,137,0,0,0,152,0,0]} 1. Nf3 {[%emt 0:00:03]} g6 {[%emt 0:00:00]} 2. d4 {[%emt 0:00:02]} Bg7 {[%emt 0:00:01]} 3. g3 {[%emt 0:00:01]} d6 {[%emt 0:00:01]} 4. Bg2 {[%emt 0:00:03]} Nd7 {[%emt 0:00:01]} 5. O-O {[%emt 0:00:07]} e5 {[%emt 0:00:01]} 6. c4 {[%emt 0:00:13]} Ne7 {[%emt 0:00:02]} 7. Nc3 {[%emt 0:00:05]} O-O {[%emt 0:00:02]} 8. e4 {[%emt 0:02:44]} exd4 {[%emt 0:00:01]} 9. Nxd4 {[%emt 0:00:00]} Nc6 {[%emt 0:00:01]} 10. Be3 {[%emt 0:00:00]} Nde5 {[%emt 0:00:02] A42: Modern Defence: Averbakh Variation.} 11. Nxc6 {[%emt 0:00:00]} bxc6 {[%emt 0:00:05]} 12. Qa4 {[%emt 0:00:00]} c5 {[%emt 0:00:27] Black is slightly better.} 13. Rad1 {[%emt 0:00:00]} Bd7 {[%emt 0:00:02]} 14. Qa6 {[%emt 0:00:00]} Qc8 {[%emt 0:00:24]} (14... Bg4 $15 15. f3 Bc8) 15. Qxc8 $11 {[%emt 0:00:00] [#]} Rfxc8 $146 {[%emt 0:00:01]} ({Predecessor:} 15... Raxc8 16. Nd5 Nxc4 17. Ne7+ Kh8 18. Nxc8 Nxe3 19. fxe3 Bxc8 20. Rf2 Be6 21. Bf1 Be5 {0-1 (60) Bao,K (2257)-Djuraev,S (2375) Ho Chi Minh City 2012}) 16. Nd5 {[%emt 0:00:00] Threatens to win with Ne7+.} (16. b3 $5 {[%cal Rc3d5]}) 16... Nxc4 {[%emt 0:00:01]} 17. Ne7+ {[%emt 0:00:00]} Kf8 $1 {[%emt 0:00:01]} 18. Nxc8 {[%emt 0:00:00]} Nxe3 {[%emt 0:00:01]} 19. fxe3 {[%emt 0:00:00][%cal Oc8d6] Nxd6! is the strong threat.} Rxc8 {[%emt 0:00:01]} 20. b3 {[%emt 0:00:00]} Be5 {[%emt 0:00:05][%mdl 1024] Black has compensation.} 21. Rf2 {[%emt 0:00:00]} Ke7 {[%emt 0:00:01]} 22. Bf1 {[%emt 0:00:00]} a5 {[%emt 0:00:01]} 23. Bc4 {[%emt 0:00:00]} f6 {[%emt 0:00:02]} 24. a4 {[%emt 0:00:00]} (24. Kg2 $11) 24... Rb8 $15 {[%emt 0:00:01]} 25. Rc2 {[%emt 0:00:00]} Rb4 {[%emt 0:00:11]} 26. Kg2 {[%emt 0:00:00]} Be6 {[%emt 0:00:10]} (26... h5 $17) 27. Bxe6 $11 {[%emt 0:00:00]} Kxe6 {[%emt 0:00:01][%mdl 4096] Endgame KRR-KRB} 28. Rd3 {[%emt 0:00:15]} Rxe4 {[%emt 0:00:01]} (28... h5 $11) 29. Kf3 {[%emt 0:00:01]} ({Only move:} 29. Rc4 $1 $14 Rxc4 30. bxc4) 29... f5 $2 {[%emt 0:00:04]} (29... Rb4 $15 {keeps the upper hand.}) 30. Rc4 $16 {[%emt 0:00:05]} Rxc4 {[%emt 0:00:32]} 31. bxc4 {[%emt 0:00:00] KR-KB} c6 {[%emt 0:00:02]} 32. e4 {[%emt 0:00:05] Against d5} ({White should play} 32. Rb3 $1) 32... Bd4 {[%emt 0:00:06]} (32... fxe4+ $16 33. Kxe4 h5) 33. h3 {[%emt 0:00:04]} (33. exf5+ $18 gxf5 34. Rb3) 33... Ke5 {[%emt 0:00:03]} ({Better is} 33... d5 $14 34. cxd5+ cxd5 35. exf5+ (35. exd5+ Kxd5 36. Rb3 Kc4 $17) 35... gxf5) 34. exf5 $18 {[%emt 0:00:05]} gxf5 {[%emt 0:00:02]} 35. Rd1 {[%emt 0:00:07]} (35. Rb3 $1 $18) 35... d5 $16 {[%emt 0:00:01]} 36. Re1+ {[%emt 0:00:03]} Kd6 {[%emt 0:00:04] [#]} 37. Rc1 {[%emt 0:00:02]} (37. g4 $1 $16) 37... Ke5 {[%emt 0:00:05]} 38. Re1+ $2 {[%emt 0:00:01]} (38. Rf1 $11) 38... Kd6 $1 {[%emt 0:00:01] [#]} 39. Rc1 $2 {[%emt 0:00:01]} ({White should try} 39. g4 $1 $16) 39... Ke5 {[%emt 0:01:32] Weighted Error Value: White=0.38/Black=0.35} 1/2-1/2

[Event "Romanian Team Blitz Open 2022"]
[Site "Sebes"]
[Date "2022.12.04"]
[Round "3.19"]
[White "Ileana, George"]
[Black "Dragomirescu, Calin"]
[Result "0-1"]
[ECO "B07"]
[WhiteElo "2343"]
[BlackElo "1971"]
[Annotator "TA"]
[PlyCount "40"]
[EventDate "2022.12.04"]
[EventType "blitz"]
[EventCountry "ROU"]
[SourceTitle "playchess.com"]
[Source "ChessBase"]
[SourceQuality "1"]
[TimeControl "180+2"]

{[%evp 9,40,44,46,42,46,51,54,38,52,19,107,16,10,0,59,-89,-80,-216,-42,-48,-29,-131,-130,-255,-136,-245,-111,-139,-92,-854,-836,-825,-788]} 1. e4 {[%emt 0:00:02]} g6 {[%emt 0:00:01]} 2. d4 {[%emt 0:00:01]} Bg7 {[%emt 0:00:00]} 3. Be3 {[%emt 0:00:07]} d6 {[%emt 0:00:01]} 4. f3 {[%emt 0:00:05]} Nf6 {[%emt 0:00:02]} 5. Nc3 {[%emt 0:00:01]} a6 {[%emt 0:00:01]} 6. Qd2 {[%emt 0:00:03] B07: Pirc Defence: Miscellaneous Systems.} b5 {[%emt 0:00:01]} 7. O-O-O {[%emt 0:00:04]} Bb7 {[%emt 0:00:02]} 8. h4 {[%emt 0:00:01] White is slightly better.} h5 {[%emt 0:00:00]} 9. Nh3 {[%emt 0:00:01]} (9. e5 $5 {[%cal Re5f6]}) 9... O-O {[%emt 0:00:03]} (9... Nbd7 $11 {keeps the balance.}) 10. Ng5 {[%emt 0:00:03]} (10. e5 $16) 10... Nbd7 $11 {[%emt 0:00:02]} 11. Kb1 {[%emt 0:00:08][%cal Og2g4]} (11. g4 {looks sharper.} c5 12. gxh5 Nxh5 13. dxc5 Nxc5 14. Bd4) 11... Rc8 {[%emt 0:00:01] [#]} ({Better is} 11... c5 $11) 12. f4 $146 {[%emt 0:00:14]} (12. g4 $14 {stays ahead.}) ({Predecessor:} 12. g4 hxg4 13. h5 gxh5 14. fxg4 b4 15. Nd5 Nxe4 16. Nxe4 Bxd5 17. Bd3 f5 18. gxf5 Bxe4 19. Bxe4 {1-0 (29) Garcia,J (2024)-Pleasants,A (2075) Cardiff 2019}) 12... b4 $17 {[%emt 0:00:06]} 13. Nd5 {[%emt 0:00:12] [#]} (13. Na4 $17) 13... Bxd5 $2 {[%emt 0:00:07]} ({Black should play} 13... Nxe4 $1 $19 {[%mdl 512]} 14. Nxe4 Bxd5) 14. exd5 $15 {[%emt 0:00:09]} Nxd5 {[%emt 0:00:01]} 15. Bf2 {[%emt 0:00:00]} (15. Bc4 $11 N7b6 16. Bd3) 15... Rb8 $17 {[%emt 0:00:12][%cal Od5c3] And now ...Nc3+! would win.} 16. Bxa6 {[%emt 0:00:07]} (16. Ka1 $17) 16... c6 {[%emt 0:00:07]} ({Black should try} 16... c5 $19 {[%cal Od5c3] Strongly threatening ...Nc3+!} 17. Qe2 Nxf4) 17. Bc4 {[%emt 0:00:06] [#]} (17. Ka1 $17 {keeps fighting.}) 17... N7f6 {[%emt 0:00:14]} (17... Nc3+ $1 $19 {[%mdl 512] has better winning chances.} 18. Ka1 Nxd1 19. Rxd1 d5) 18. Rde1 {[%emt 0:00:07] [#]} Qa5 {[%emt 0:00:05]} (18... Nc3+ $142 $1 {[%mdl 512]} 19. Ka1 (19. Kc1 d5) 19... d5) 19. Ne4 $2 {[%emt 0:00:11][%mdl 8192]} (19. Bb3 $17) 19... Nxe4 $19 {[%emt 0:00:03]} 20. Rxe4 {[%emt 0:00:02] [#]} Nc3+ $1 {[%emt 0:00:04][%mdl 512] Weighted Error Value: White=1.08/Black=0.48} 0-1

[Event "Romanian Team Blitz Open 2022"]
[Site "Sebes"]
[Date "2022.12.04"]
[Round "3.20"]
[White "Santimbrean, Mihnea-Nicolae"]
[Black "Negrean, Andrei"]
[Result "0-1"]
[ECO "B20"]
[WhiteElo "1491"]
[BlackElo "1991"]
[Annotator "TA"]
[PlyCount "61"]
[EventDate "2022.12.04"]
[EventType "blitz"]
[EventCountry "ROU"]
[SourceTitle "playchess.com"]
[Source "ChessBase"]
[SourceQuality "1"]
[TimeControl "180+2"]

{[%evp 14,61,4,2,4,4,18,4,4,0,0,3,11,-22,-25,-21,-16,-22,-18,-21,-22,-22,18,30,17,-33,-28,-305,-290,-293,-299,-1056,-1036,-1051,-1012,-1398,-1420,-1477,-1433,-1420,-1287,-1282,-1234,-29988,-29989,-29989,-29990,-29994,-29995,-29998]} 1. e4 {[%emt 0:00:02]} c5 {[%emt 0:00:00]} 2. g3 {[%emt 0:00:01]} Nc6 {[%emt 0:00:05]} 3. Bg2 {[%emt 0:00:01]} g6 {[%emt 0:00:01]} 4. f4 {[%emt 0:00:02]} Bg7 {[%emt 0:00:01]} 5. Nf3 {[%emt 0:00:01]} d6 {[%emt 0:00:04]} 6. d3 {[%emt 0:00:03]} e6 {[%emt 0:00:04]} 7. O-O {[%emt 0:00:04]} Nge7 {[%emt 0:00:01]} 8. c3 {[%emt 0:00:05]} Rb8 {[%emt 0:00:06] B20: Sicilian: Unusual White 2nd moves.} 9. a4 {[%emt 0:00:16]} a6 {[%emt 0:00:04] [#]} 10. Kh1 $146 {[%emt 0:00:18]} ({Predecessor:} 10. Be3 O-O 11. Bf2 b5 12. axb5 axb5 13. Nbd2 b4 14. Qc2 Bb7 15. Rfe1 Qc7 16. Nc4 {½-½ (24) Kovacevic,B (2457)-Kojovic,D (2407) Neum 2007}) 10... b5 {[%emt 0:00:02] The position is equal.} 11. axb5 {[%emt 0:00:05]} axb5 {[%emt 0:00:01]} 12. Be3 {[%emt 0:00:07][%cal Oe4e5]} b4 {[%emt 0:00:04] Against e5} 13. d4 {[%emt 0:00:08]} bxc3 {[%emt 0:00:04]} 14. bxc3 {[%emt 0:00:03][%cal Bb2c3,Bc3d4,Bd4e5][%mdl 32] Hoping for d5.} cxd4 {[%emt 0:00:01]} 15. cxd4 {[%emt 0:02:16]} O-O {[%emt 0:00:06]} 16. Nbd2 {[%emt 0:00:00]} Bb7 {[%emt 0:00:19]} 17. e5 {[%emt 0:00:00]} dxe5 {[%emt 0:00:09]} 18. dxe5 {[%emt 0:00:00]} Nb4 {[%emt 0:00:13]} 19. Qb3 {[%emt 0:00:00]} ({White should try} 19. Ba7 $11) 19... Bd5 $15 {[%emt 0:00:07]} 20. Qa3 {[%emt 0:00:00][%mdl 8192] [#] White does not recover from this.} (20. Qd1 $11 {and White has nothing to worry.}) 20... Nc2 $1 $19 {[%emt 0:00:04][%csl LRa1,LRa3]} 21. Qc3 {[%emt 0:00:00]} Rc8 {[%emt 0:00:04]} 22. Qd4 {[%emt 0:00:00]} (22. Bc5 Nxa1 23. Rxa1) 22... Nxd4 {[%emt 0:00:02]} 23. Bxd4 {[%emt 0:00:00]} Nf5 {[%emt 0:00:04] [#] White must now prevent ...Nxd4.} 24. Bb2 {[%emt 0:00:00]} Ne3 {[%emt 0:00:04][%cal Oc8c2] ...Rc2! is the strong threat.} 25. Rf2 {[%emt 0:00:00]} Nxg2 {[%emt 0:00:02]} 26. Kxg2 {[%emt 0:00:00]} Rc2 {[%emt 0:00:05]} 27. Bd4 {[%emt 0:00:00]} Bxf3+ {[%emt 0:00:04]} 28. Kxf3 {[%emt 0:00:00]} Qxd4 {[%emt 0:00:02] Black mates.} 29. Rd1 {[%emt 0:00:00]} Rd8 {[%emt 0:00:08]} 30. Kg4 {[%emt 0:00:00]} Qxf2 {[%emt 0:00:05]} 31. Nb1 {[%emt 0:00:32] Weighted Error Value: White=0.98/Black=0.11 (very precise)} 0-1

[Event "Romanian Team Blitz Open 2022"]
[Site "Sebes"]
[Date "2022.12.04"]
[Round "3.21"]
[White "Nastase, Robert-Paul"]
[Black "Baratosi, Daniel"]
[Result "1-0"]
[ECO "B00"]
[WhiteElo "2229"]
[BlackElo "2335"]
[Annotator "TA"]
[PlyCount "93"]
[EventDate "2022.12.04"]
[EventType "blitz"]
[EventCountry "ROU"]
[SourceTitle "playchess.com"]
[Source "ChessBase"]
[SourceQuality "1"]
[TimeControl "180+2"]

{[%evp 9,93,60,62,36,39,32,49,53,60,47,64,58,93,93,93,90,85,85,94,97,210,159,166,115,103,52,125,118,108,115,108,105,100,77,156,106,113,64,104,40,95,44,248,246,221,74,81,60,92,41,80,0,152,0,0,-200,-100,-104,-60,-61,-100,-66,72,-378,-158,-230,-236,-743,-683,-529,-100,-71,0,0,0,0,859,758,1320,1307,1268,1243,1758,1851,2595,2534]} 1. e4 {[%emt 0:00:02]} b6 {[%emt 0:00:08]} 2. d4 {[%emt 0:00:08]} Bb7 {[%emt 0:00:01]} 3. Bd3 {[%emt 0:00:08]} g6 {[%emt 0:00:01]} 4. Nf3 {[%emt 0:00:06]} Bg7 {[%emt 0:00:01]} 5. O-O {[%emt 0:00:04]} d6 {[%emt 0:00:01]} 6. Bf4 {[%emt 0:00:23] B00: Queen's Fianchetto Defence, Nimzowitsch Defence.} Nd7 {[%emt 0:00:02]} 7. Nc3 {[%emt 0:00:29]} e6 {[%emt 0:00:04]} 8. Qe2 {[%emt 0:00:03] White is slightly better.} a6 {[%emt 0:00:01]} 9. Rfe1 {[%emt 0:00:11] [#]} Ne7 $146 {[%emt 0:00:05]} ({Predecessor:} 9... h6 10. e5 g5 11. Bg3 h5 12. exd6 cxd6 13. Ne4 Bxe4 14. Bxe4 d5 15. Bxd5 Rc8 16. Bxe6 fxe6 17. Qxe6+ Qe7 18. Qg6+ Kf8 19. Bd6 Rh6 20. Qf5+ Rf6 21. Bxe7+ {1-0 (21) Tricomi,M (1573)-McMichael,A (800) IECG email 2000}) 10. e5 {[%emt 0:00:07]} d5 {[%emt 0:00:10]} 11. Nd1 {[%emt 0:00:13] White has more active pieces.} c5 {[%emt 0:00:06]} 12. c3 $1 {[%emt 0:00:02]} Qc7 {[%emt 0:00:20]} 13. Ne3 {[%emt 0:00:04]} c4 {[%emt 0:00:22]} 14. Bc2 {[%emt 0:00:02]} O-O-O {[%emt 0:00:38]} (14... h5 $16 {might work better.}) 15. Bg5 {[%emt 0:00:07]} Rde8 {[%emt 0:00:21]} 16. Ng4 {[%emt 0:00:06]} (16. b3 $18) 16... Nf5 $16 {[%emt 0:00:04]} 17. Qd2 {[%emt 0:00:10]} (17. Bf4 $16) 17... h5 {[%emt 0:00:13]} (17... h6 $1 $14) 18. Nf6 {[%emt 0:00:08]} Nxf6 {[%emt 0:00:07]} 19. exf6 {[%emt 0:00:02]} Bf8 {[%emt 0:00:03]} 20. Ne5 {[%emt 0:00:27]} Bd6 {[%emt 0:00:02]} 21. h4 {[%emt 0:00:08]} b5 {[%emt 0:00:05]} (21... Kb8 $142) 22. a3 {[%emt 0:00:04]} (22. a4 $142) 22... a5 {[%emt 0:00:14]} 23. f3 {[%emt 0:00:02]} (23. b3 $16) 23... Rh7 {[%emt 0:00:12]} 24. Kf2 {[%emt 0:00:02]} (24. b3 $16) 24... Qb6 {[%emt 0:00:06]} ({Better is} 24... a4 $14) 25. Re2 {[%emt 0:00:07]} (25. b3 $16) 25... b4 $2 {[%emt 0:00:08]} ({Black should play} 25... Qc7 $14) 26. axb4 $18 {[%emt 0:00:02]} axb4 {[%emt 0:00:01]} 27. Rh1 {[%emt 0:00:01]} (27. Bxf5 $18 {and the rest is easy.} gxf5 28. Bf4) 27... b3 $16 {[%emt 0:00:07]} 28. Bb1 {[%emt 0:00:02]} Bc7 {[%emt 0:00:00]} 29. Rh3 {[%emt 0:00:03]} (29. Bxf5 $16 gxf5 30. Ra1) 29... Nd6 {[%emt 0:00:08] [#]} 30. Ke1 {[%emt 0:00:15]} (30. Nxg6 $1 $16 {Black must now prevent Ne7+.} fxg6 31. Bxg6) 30... Qa7 $2 {[%emt 0:00:03] [#]} ({Black should try} 30... Rg8 $11) 31. Kd1 $2 {[%emt 0:00:01]} ({White has to play} 31. Nxg6 $1 $16 {[%mdl 512] aiming for Ne7+.} Kb8 (31... Qa1 32. Qd1) 32. Bf4 $1) 31... Qa1 {[%emt 0:00:01]} 32. Kc1 {[%emt 0:00:01]} (32. Qc1 $11 {and White is okay.}) 32... Nf5 {[%emt 0:00:05]} (32... Ba6 $19 33. Qe3 Bb5) 33. g4 {[%emt 0:00:02]} hxg4 {[%emt 0:00:02]} (33... Nd6 {with more complications.} 34. Bf4 hxg4 35. fxg4 Ne4) 34. fxg4 {[%emt 0:00:01]} Nd6 {[%emt 0:00:02]} 35. h5 {[%emt 0:00:05]} Rhh8 {[%emt 0:00:08]} (35... Ne4 $15 {stays ahead.} 36. Rxe4 dxe4) 36. Reh2 $2 {[%emt 0:00:03][%mdl 8192]} (36. Bf4 $16 {keeps the pressure on.}) 36... gxh5 {[%emt 0:00:00]} (36... Ne4 $19 {has better winning chances.} 37. Qe3 Bxe5 38. dxe5 d4 39. Qxd4 (39. cxd4 $2 Nxg5 40. Qxg5 Be4 $19) 39... Nxg5 40. Qxc4+ Kb8) 37. Rxh5 {[%emt 0:00:02]} (37. Qe3 $17 {keeps fighting.}) 37... Rxh5 $19 38. Rxh5 {[%emt 0:00:01]} (38. gxh5 Ne4 39. Qe3 Bxe5 40. dxe5) 38... Ne4 {[%emt 0:00:00]} 39. Qe3 {[%emt 0:00:04]} Bd6 $2 {[%emt 0:00:00]} (39... Bxe5 $19 40. dxe5 d4 41. Qxd4 Rd8 42. Qxc4+ Kb8 43. Qxb3 Qa7 $1) 40. Nxf7 $17 {[%emt 0:00:07] [#]} Ba3 {[%emt 0:00:00]} 41. Rh2 $1 $11 {[%emt 0:00:04] Hoping for Bf4.} (41. bxa3 Nxc3 42. Nd6+ Kd7 43. Rh7+ Kc6 44. Nxe8 (44. Rc7+ $2 Kxc7 45. Nxe8+ Kb6 $19) 44... Qxb1+ 45. Kd2 Ne4+ 46. Ke2 b2 47. Rc7+ Kb6 $19) 41... Rf8 {[%emt 0:00:02]} 42. Ne5 {[%emt 0:00:04] And now f7 would win. The board is on fire.} Rg8 $2 {[%emt 0:00:02][%mdl 8192]} (42... Nxg5 $11 43. Qxg5 {[#]} Bxb2+ $1 {[%mdl 512]} 44. Rxb2 Rh8) 43. Bf4 {[%emt 0:00:02] White is clearly winning.} Bd6 {[%emt 0:00:03]} 44. f7 {[%emt 0:00:02]} Rf8 {[%emt 0:00:03]} 45. g5 {[%emt 0:00:02][%cal Bg4g5,Bg5g6,Bg6g7][%mdl 32]} Kc7 {[%emt 0:00:01]} 46. g6 {[%emt 0:00:02]} Ra8 {[%emt 0:00:06]} 47. g7 {[%emt 0:00:01] What a bad dream for Black.   Weighted Error Value: White=0.67/Black=0.61} 1-0